fUST/lending_fUST_20250227
["ID","MTS","AMOUNT","RATE_DAILY","PERIOD"]
[354644693,1740601922701,-500.0,0.00054519,120]
[354644694,1740601922753,-423.49051717,0.0005452,120]
[354644695,1740601922805,-500.0,0.0005452,120]
[354644696,1740601922853,-500.0,0.0005452,120]
[354644697,1740601922901,-500.0,0.0005452,120]
[354644698,1740601922950,-500.0,0.0005452,120]
[354644699,1740601923000,-500.0,0.0005452,120]
[354644700,1740601923065,-500.0,0.0005452,120]
[354644701,1740601923125,-500.0,0.0005452,120]
[354644702,1740601923186,-500.0,0.00054793,120]
[354644703,1740601923244,-500.0,0.00054793,120]
[354644704,1740601923298,-502.5,0.00054793,120]
[354644705,1740601923354,-500.0,0.00054793,120]
[354644706,1740601923407,-500.0,0.00054793,15]
[354644707,1740601923462,-500.0,0.00054793,120]
[354644708,1740601923514,-500.0,0.00054793,120]
[354644709,1740601923565,-500.0,0.00054793,120]
[354644710,1740601923616,-500.0,0.00054794,120]
[354644711,1740601923668,-500.0,0.00054794,120]
[354644712,1740601923724,-500.0,0.00054794,120]
[354644713,1740601923784,-500.0,0.00054794,120]
[354644714,1740601923836,-500.0,0.00054794,120]
[354644715,1740601923884,-500.0,0.00054794,120]
[354644716,1740601923934,-500.0,0.00055067,120]
[354644717,1740601923991,-500.0,0.00055067,120]
[354644718,1740601924045,-500.0,0.00055067,120]
[354644719,1740601924098,-500.0,0.00055067,15]
[354644720,1740601924151,-500.0,0.00055067,120]
[354644721,1740601924205,-500.0,0.00055067,120]
[354644722,1740601924259,-500.0,0.00055067,120]
[354644723,1740601924315,-500.0,0.00055068,120]
[354644724,1740601924368,-500.0,0.00055068,120]
[354644725,1740601924420,-500.0,0.00055068,120]
[354644726,1740601924473,-500.0,0.00055068,120]
[354644727,1740601924523,-500.0,0.00055068,120]
[354644728,1740601924572,-500.0,0.00055068,120]
[354644729,1740601924621,-540.91843139,0.00055341,120]
[354644730,1740601924674,-500.0,0.00055341,120]
[354644731,1740601924723,-500.0,0.00055341,120]
[354644732,1740601924769,-500.0,0.00055341,15]
[354644733,1740601924815,-500.0,0.00055341,120]
[354644734,1740601924861,-500.0,0.00055341,120]
[354644735,1740601924910,-500.0,0.00055341,120]
[354644736,1740601924961,-633.24,0.00055342,120]
[354644737,1740601925010,-500.0,0.00055342,120]
[354644738,1740601925059,-500.0,0.00055342,120]
[354644739,1740601925112,-500.0,0.00055342,120]
[354644740,1740601925165,-440.1,0.00055342,120]
[354644741,1740601925333,-500.0,0.00055342,120]
[354644742,1740601925406,-500.0,0.00055615,120]
[354644743,1740601925459,-500.0,0.00055615,120]
[354644744,1740601925513,-500.0,0.00055615,15]
[354644745,1740601925566,-500.0,0.00055615,120]
[354644746,1740601925618,-500.0,0.00055615,120]
[354644747,1740601925669,-500.0,0.00055615,120]
[354644748,1740601925721,-500.0,0.00055616,120]
[354644749,1740601925773,-500.0,0.00055616,120]
[354644750,1740601925824,-388.75,0.00055616,120]
[354644751,1740601925871,-500.0,0.00055616,120]
[354644752,1740601925921,-500.0,0.00055889,120]
[354644753,1740601925972,-500.0,0.00055889,120]
[354644754,1740601926020,-288.53,0.00055889,15]
[354644755,1740601926070,-500.0,0.00055889,120]
[354644756,1740601926120,-500.0,0.00055889,120]
[354644757,1740601926168,-500.0,0.00055889,120]
[354644758,1740601926218,-500.0,0.0005589,120]
[354644759,1740601926267,-500.0,0.0005589,120]
[354644760,1740601926315,-500.0,0.0005589,120]
[354644761,1740601926363,-500.0,0.00056163,120]
[354644762,1740601926412,-467.69491959,0.00056163,120]
[354644763,1740601926464,-500.0,0.00056163,120]
[354644764,1740601926512,-500.0,0.00056163,120]
[354644765,1740601926559,-500.0,0.00056163,120]
[354644766,1740601926607,-473.32546997,0.00056164,120]
[354644767,1740601926653,-500.0,0.00056164,120]
[354644768,1740601926701,-500.0,0.00056164,120]
[354644769,1740601926749,-500.0,0.00056437,120]
[354644770,1740601926797,-500.0,0.00056437,120]
[354644771,1740601926845,-500.0,0.00056437,120]
[354644772,1740601926892,-500.0,0.00056437,120]
[354644773,1740601926944,-500.0,0.00056438,120]
[354644774,1740601926993,-500.0,0.00056438,120]
[354644775,1740601927045,-500.0,0.00056711,120]
[354644776,1740601927096,-500.0,0.00056711,120]
[354644777,1740601927146,-285.27,0.00056711,120]
[354644778,1740601927200,-500.0,0.00056711,120]
[354644779,1740601927246,-500.0,0.00056712,120]
[354644780,1740601927291,-500.0,0.00056712,120]
[354644781,1740601927338,-432.34773144,0.00056985,120]
[354644782,1740601927386,-500.0,0.00056985,120]
[354644783,1740601927434,-500.0,0.00056985,120]
[354644784,1740601927483,-500.0,0.00056986,120]
[354644785,1740601927530,-500.0,0.00056986,120]
[354644786,1740601927578,-500.0,0.00057259,120]
[354644787,1740601927628,-500.0,0.00057259,120]
[354644788,1740601927677,-174.40025489,0.0005726,120]
[354644789,1740601927733,-500.0,0.0005726,120]
[354644790,1740601927783,-500.0,0.00057533,120]
[354644791,1740601927832,-500.0,0.00057533,120]
[354644792,1740601927878,-500.0,0.00057807,120]
[354644793,1740601927926,-500.0,0.00057807,120]
[354644794,1740601927979,-500.0,0.00058081,120]
[354644795,1740601928035,-500.0,0.00058081,120]
[354644796,1740601928085,-500.0,0.00058355,120]
[354644797,1740601928137,-500.0,0.00058355,120]
[354644798,1740601928189,-500.0,0.00058499,120]
[354644799,1740601928243,-500.0,0.00058499,14]
[354644800,1740601928293,-500.0,0.00058499,120]
[354644801,1740601928343,-500.0,0.00058499,120]
[354644802,1740601928392,-502.26,0.00058499,120]
[354644803,1740601928450,-500.0,0.00058629,120]
[354644804,1740601928503,-237.34013454,0.00058629,120]
[354644805,1740601928557,-500.0,0.00058773,120]
[354644806,1740601928609,-500.0,0.00058773,120]
[354644807,1740601928662,-500.0,0.00058773,14]
[354644808,1740601928713,-500.0,0.00058773,120]
[354644809,1740601928768,-500.0,0.00058773,120]
[354644810,1740601928820,-485.50179837,0.00058903,120]
[354644811,1740601928870,-500.0,0.00059047,120]
[354644812,1740601928917,-500.0,0.00059047,120]
[354644813,1740601928966,-500.0,0.00059047,14]
[354644814,1740601929017,-500.0,0.00059047,120]
[354644815,1740601929070,-500.0,0.00059047,120]
[354644816,1740601929120,-500.0,0.00059321,120]
[354644817,1740601929170,-500.0,0.00059321,120]
[354644818,1740601929221,-500.0,0.00059321,14]
[354644819,1740601929276,-500.0,0.00059321,120]
[354644820,1740601929326,-500.0,0.00059321,120]
[354644821,1740601929383,-153.0,0.00059356,60]
[354644822,1740601929447,-153.0,0.00059356,60]
[354644823,1740601929502,-153.0,0.00059356,60]
[354644824,1740601929557,-154.8760086,0.00059356,60]
[354644825,1740601929607,-154.8760086,0.00059356,60]
[354644826,1740601929658,-557.5803526,0.00059356,60]
[354644827,1740601929704,-154.8760086,0.00059356,60]
[354644828,1740601929748,-154.8760086,0.00059356,60]
[354644829,1740601929792,-154.8760086,0.00059356,60]
[354644830,1740601929837,-557.5803526,0.00059356,60]
[354644831,1740601929881,-154.8760086,0.00059356,60]
[354644832,1740601929927,-154.8760086,0.00059356,60]
[354644833,1740601929978,-154.8760086,0.00059356,60]
[354644834,1740601930024,-557.5803526,0.00059356,60]
[354644835,1740601930072,-154.8760086,0.00059356,60]
[354644836,1740601930120,-154.8760086,0.00059356,60]
[354644837,1740601930281,-154.8760086,0.00059356,60]
[354644838,1740601930328,-557.5803526,0.00059356,60]
[354644839,1740601930373,-154.8760086,0.00059356,60]
[354644840,1740601930420,-500.0,0.00059595,120]
[354644841,1740601930467,-500.0,0.00059595,120]
[354644842,1740601930513,-500.0,0.00059595,14]
[354644843,1740601930557,-500.0,0.00059595,120]
[354644844,1740601930601,-500.0,0.00059595,120]
[354644845,1740601930646,-500.0,0.00059869,120]
[354644846,1740601930695,-500.0,0.00059869,120]
[354644847,1740601930740,-500.0,0.00059869,14]
[354644848,1740601930784,-500.0,0.00059869,120]
[354644849,1740601930827,-500.0,0.00059869,120]
[354644850,1740601930874,-152.33,0.0006,60]
[354644851,1740601930920,-152.33,0.0006,60]
[354644852,1740601930973,-152.33,0.0006,60]
[354644853,1740601931018,-152.33,0.0006,60]
[354644854,1740601931068,-152.33,0.0006,60]
[354644855,1740601931119,-152.33,0.0006,60]
[354644856,1740601931168,-152.33,0.0006,60]
[354644857,1740601931244,500.0,0.00053971,120]
[354644858,1740601931296,584.51580186,0.00052601,120]
[354644859,1740601931350,500.0,0.00057534,120]
[354644860,1740601931398,502.26,0.00058773,120]
[354644861,1740601931452,154.8760086,0.00059356,60]
[354644862,1740601931503,500.0,0.00057808,120]
[354644863,1740601931557,502.26,0.00059047,120]
[354644864,1740601931622,500.0,0.00054245,120]
[354644865,1740601931680,500.0,0.00052054,120]
[354644866,1740601931735,583.02367296,0.00058082,120]
[354644867,1740601931787,502.26,0.00059321,120]
[354644868,1740601931837,154.8760086,0.00059356,60]
[354644869,1740601931886,500.0,0.00054519,120]
[354644870,1740601931936,557.5803526,0.00059356,60]
[354644871,1740601931986,500.0,0.00052328,120]
[354644872,1740601932039,502.26,0.00059595,120]
[354644873,1740601932093,500.0,0.00054793,120]
[354644874,1740601932146,500.0,0.00052602,120]
[354644875,1740601932200,502.26,0.00059869,120]
[354644876,1740601932253,500.0,0.00055067,120]
[354644877,1740601932321,500.0,0.00052876,120]
[354644878,1740601932402,500.25,0.0005315,120]
[354644879,1740601932468,500.0,0.00055341,120]
[354644880,1740601932553,320.3959133,0.00052327,120]
[354644881,1740601932619,236.96,0.00055615,120]
[354644882,1740601932717,154.8760086,0.00059356,60]
[354644883,1740601932796,557.5803526,0.00059356,60]
[354644884,1740601932898,309.7520172,0.00059356,60]
[354644885,1740601933055,175.06,0.00052327,120]
[354644886,1740601933136,557.5803526,0.00059356,60]
[354644887,1740601933255,500.0,0.00052054,120]
[354644888,1740601933320,557.5803526,0.00059356,60]
[354644889,1740601933395,500.0,0.00052328,120]
[354644890,1740601933461,216.31,0.00052054,7]
[354644891,1740601933513,500.0,0.00052602,120]
[354644892,1740601933570,500.0,0.00052876,120]
[354644893,1740601933619,216.31,0.00052328,7]
[354644894,1740601933669,500.0,0.0005315,120]
[354644895,1740601933717,216.31,0.00052602,7]
[354644896,1740601933765,500.0,0.00053424,120]
[354644897,1740601933819,216.31,0.00052876,7]
[354644898,1740601933870,500.0,0.00053698,120]
[354644899,1740601933928,216.31,0.0005315,7]
[354644900,1740601933987,500.0,0.00053972,120]
[354644901,1740601934040,557.5803526,0.00059356,60]
[354644902,1740601934099,216.31,0.00053424,7]
[354644903,1740601934154,500.0,0.00054246,120]
[354644904,1740601934215,216.31,0.00053698,7]
[354644905,1740601934276,500.0,0.00052054,120]
[354644906,1740601934332,500.0,0.0005452,120]
[354644907,1740601934575,216.31,0.00053972,7]
[354644908,1740601934630,500.0,0.00054794,120]
[354644909,1740601934679,500.0,0.00052328,120]
[354644910,1740601934728,500.0,0.00058499,120]
[354644911,1740601934785,216.31,0.00054246,7]
[354644912,1740601934835,500.0,0.00055068,120]
[354644913,1740601934886,500.0,0.00052602,120]
[354644914,1740601934937,500.0,0.00052327,120]
[354644915,1740601934990,500.0,0.00058773,120]
[354644916,1740601935044,500.0,0.00055342,120]
[354644917,1740601935098,500.0,0.00052876,120]
[354644918,1740601935157,500.0,0.00052601,120]
[354644919,1740601935212,500.0,0.00059047,120]
[354644920,1740601935269,500.0,0.00055616,120]
[354644921,1740601935324,216.31,0.0005452,7]
[354644922,1740601935380,500.0,0.0005315,120]
[354644923,1740601935443,500.0,0.00052875,120]
[354644924,1740601935505,500.0,0.00059321,120]
[354644925,1740601935577,500.0,0.0005589,120]
[354644926,1740601935635,216.31,0.00054794,7]
[354644927,1740601935690,500.0,0.00053424,120]
[354644928,1740601935752,500.0,0.00053149,120]
[354644929,1740601935812,386.41502119,0.00059595,120]
[354644930,1740602436101,-739.09288884,0.000269,4]
[354644931,1740602436152,-193.863,0.00043221,66]
[354644932,1740602436203,-151.0,0.00045,120]
[354644933,1740602436256,-1624.160698,0.00049724,120]
[354644934,1740602436307,-200.1565154,0.00051143,120]
[354644935,1740602436358,-291.0,0.00051243,15]
[354644936,1740602436408,-1500.0,0.00051244,120]
[354644937,1740602436459,-293.0,0.00052054,2]
[354644938,1740602436511,-500.0,0.00052054,120]
[354644939,1740602436563,-460.51578129,0.00052054,120]
[354644940,1740602436614,-500.0,0.00052054,120]
[354644941,1740602436665,-500.0,0.00052054,120]
[354644942,1740602436715,-585.13844355,0.00052054,120]
[354644943,1740602436762,-500.0,0.00052054,120]
[354644944,1740602436810,-500.0,0.00052054,120]
[354644945,1740602436858,-500.0,0.00052054,120]
[354644946,1740602436906,-500.0,0.00052054,120]
[354644947,1740602436953,-500.0,0.00052054,120]
[354644948,1740602437001,-500.0,0.00052054,120]
[354644949,1740602437051,-500.0,0.00052054,120]
[354644950,1740602437103,-500.0,0.00052054,120]
[354644951,1740602437151,-500.0,0.00052054,120]
[354644952,1740602437197,-500.0,0.00052054,120]
[354644953,1740602437260,-500.0,0.00052054,120]
[354644954,1740602437317,-500.0,0.00052054,120]
[354644955,1740602437367,-500.0,0.00052054,120]
[354644956,1740602437417,-579.96,0.00052054,120]
[354644957,1740602437468,-500.0,0.00052054,120]
[354644958,1740602437518,-500.0,0.00052054,120]
[354644959,1740602437566,-500.0,0.00052054,120]
[354644960,1740602437612,-500.0,0.00052054,120]
[354644961,1740602437658,-500.0,0.00052054,28]
[354644962,1740602437703,-500.0,0.00052054,120]
[354644963,1740602437749,-276.45885419,0.00052054,120]
[354644964,1740602437795,-500.0,0.00052054,120]
[354644965,1740602437841,-378.739268,0.00052054,120]
[354644966,1740602437887,-562.56381779,0.00052054,120]
[354644967,1740602437933,-500.0,0.00052054,120]
[354644968,1740602437978,-500.0,0.00052054,120]
[354644969,1740602438024,-500.0,0.00052054,120]
[354644970,1740602438071,-500.0,0.00052054,120]
[354644971,1740602438119,-500.0,0.00052054,120]
[354644972,1740602438168,-160.34557828,0.00052054,120]
[354644973,1740602438220,-500.0,0.00052054,120]
[354644974,1740602438270,-569.29232294,0.00052054,120]
[354644975,1740602438320,-500.0,0.00052054,120]
[354644976,1740602438368,-533.85,0.00052054,120]
[354644977,1740602438418,-500.0,0.00052054,120]
[354644978,1740602438466,-500.0,0.00052054,120]
[354644979,1740602438515,-500.0,0.00052054,120]
[354644980,1740602438561,-500.0,0.00052054,120]
[354644981,1740602438610,-500.0,0.00052054,120]
[354644982,1740602438660,-500.0,0.00052054,120]
[354644983,1740602438708,-500.0,0.00052054,120]
[354644984,1740602438756,-500.0,0.00052054,120]
[354644985,1740602438800,-500.0,0.00052054,120]
[354644986,1740602438844,-515.52,0.00052054,120]
[354644987,1740602438890,-500.0,0.00052054,120]
[354644988,1740602438934,-500.0,0.00052054,120]
[354644989,1740602438978,-500.0,0.00052054,120]
[354644990,1740602439021,-500.0,0.00052054,120]
[354644991,1740602439064,-500.0,0.00052054,120]
[354644992,1740602439109,-500.0,0.00052054,120]
[354644993,1740602439155,-500.0,0.00052054,120]
[354644994,1740602439202,-500.0,0.00052054,120]
[354644995,1740602439253,-500.0,0.00052054,120]
[354644996,1740602439302,-500.0,0.00052054,120]
[354644997,1740602439347,-500.0,0.00052054,120]
[354644998,1740602439395,-500.0,0.00052054,120]
[354644999,1740602439450,-500.0,0.00052054,120]
[354645000,1740602439504,-500.0,0.00052054,120]
[354645001,1740602439561,-500.0,0.00052054,120]
[354645002,1740602439613,-500.0,0.00052054,120]
[354645003,1740602439665,-500.0,0.00052054,120]
[354645004,1740602439720,-500.0,0.00052054,120]
[354645005,1740602439768,-500.0,0.00052054,120]
[354645006,1740602439819,-500.0,0.00052054,120]
[354645007,1740602439869,-500.0,0.00052054,120]
[354645008,1740602439918,-645.74860392,0.00052054,120]
[354645009,1740602439963,-500.0,0.00052054,120]
[354645010,1740602440008,-500.0,0.00052054,120]
[354645011,1740602440053,-500.0,0.00052054,120]
[354645012,1740602440105,-500.0,0.00052054,120]
[354645013,1740602440156,-500.0,0.00052054,120]
[354645014,1740602440206,-500.0,0.00052054,7]
[354645015,1740602440259,-500.0,0.00052054,120]
[354645016,1740602440306,-500.0,0.00052054,120]
[354645017,1740602440356,-500.0,0.00052054,120]
[354645018,1740602440404,-500.0,0.00052054,120]
[354645019,1740602440453,-500.0,0.00052054,120]
[354645020,1740602440625,-511.04,0.00052054,120]
[354645021,1740602440675,-500.0,0.00052054,120]
[354645022,1740602440726,-500.0,0.00052054,120]
[354645023,1740602440777,-500.0,0.00052054,120]
[354645024,1740602440825,-500.0,0.00052054,120]
[354645025,1740602440872,-500.0,0.00052054,120]
[354645026,1740602440916,-500.0,0.00052054,120]
[354645027,1740602440960,-500.0,0.00052054,2]
[354645028,1740602441003,-500.0,0.00052054,120]
[354645029,1740602441045,-500.0,0.00052054,120]
[354645030,1740602441090,-500.0,0.00052054,120]
[354645031,1740602441134,-500.0,0.00052054,120]
[354645032,1740602441178,-500.0,0.00052054,120]
[354645033,1740602441221,-500.0,0.00052054,120]
[354645034,1740602441268,-500.0,0.00052054,120]
[354645035,1740602441313,-500.0,0.00052054,120]
[354645036,1740602441359,-500.0,0.00052054,120]
[354645037,1740602441408,-500.0,0.00052054,120]
[354645038,1740602441456,-500.0,0.00052054,120]
[354645039,1740602441502,-500.0,0.00052054,120]
[354645040,1740602441550,-500.0,0.00052054,120]
[354645041,1740602441597,-500.0,0.00052326,120]
[354645042,1740602441649,-500.0,0.00052326,21]
[354645043,1740602441699,-500.0,0.00052326,120]
[354645044,1740602441745,-500.0,0.00052326,120]
[354645045,1740602441791,-500.0,0.00052326,120]
[354645046,1740602441836,-500.0,0.00052326,120]
[354645047,1740602441884,-500.0,0.00052326,120]
[354645048,1740602441929,-543.02141666,0.00052326,120]
[354645049,1740602441972,-500.0,0.00052326,120]
[354645050,1740602442016,-500.0,0.00052326,120]
[354645051,1740602442061,-500.0,0.00052326,3]
[354645052,1740602442109,-500.0,0.00052326,120]
[354645053,1740602442155,-500.0,0.00052326,120]
[354645054,1740602442204,-500.0,0.00052326,120]
[354645055,1740602442255,-500.0,0.00052326,120]
[354645056,1740602442307,-500.0,0.00052326,120]
[354645057,1740602442360,-500.0,0.00052326,120]
[354645058,1740602442411,-500.0,0.00052326,120]
[354645059,1740602442461,-500.0,0.00052327,120]
[354645060,1740602442509,-500.0,0.00052327,120]
[354645061,1740602442559,-500.0,0.00052327,120]
[354645062,1740602442613,-500.0,0.00052327,120]
[354645063,1740602442662,-170.32,0.00052327,120]
[354645064,1740602442709,-168.12800729,0.00052327,120]
[354645065,1740602442757,-500.0,0.00052327,120]
[354645066,1740602442802,-500.0,0.00052327,120]
[354645067,1740602442847,-231.8,0.00052327,120]
[354645068,1740602442891,-500.0,0.00052327,120]
[354645069,1740602442936,-500.0,0.00052327,120]
[354645070,1740602442981,-500.0,0.00052327,120]
[354645071,1740602443030,-500.0,0.00052327,120]
[354645072,1740602443075,-500.0,0.00052328,120]
[354645073,1740602443120,-500.0,0.00052328,120]
[354645074,1740602443173,-500.0,0.00052328,120]
[354645075,1740602443227,-500.0,0.00052328,120]
[354645076,1740602443283,-500.0,0.00052328,120]
[354645077,1740602443340,-500.0,0.00052328,120]
[354645078,1740602443404,-500.0,0.00052328,120]
[354645079,1740602443460,-500.0,0.00052328,120]
[354645080,1740602443515,-500.0,0.00052328,120]
[354645081,1740602443568,-500.0,0.00052328,120]
[354645082,1740602443619,-500.0,0.00052328,120]
[354645083,1740602443670,-500.0,0.00052328,120]
[354645084,1740602443723,-500.0,0.00052328,120]
[354645085,1740602443773,-579.96,0.00052328,120]
[354645086,1740602443825,-500.0,0.00052328,120]
[354645087,1740602443875,-500.0,0.00052328,120]
[354645088,1740602443923,-500.0,0.00052328,120]
[354645089,1740602443972,-500.0,0.00052328,120]
[354645090,1740602444021,-500.0,0.00052328,120]
[354645091,1740602444073,-500.0,0.00052328,120]
[354645092,1740602444123,-500.0,0.00052328,120]
[354645093,1740602444177,-500.0,0.00052328,120]
[354645094,1740602444229,-500.0,0.00052328,120]
[354645095,1740602444282,-500.0,0.00052328,120]
[354645096,1740602444331,-500.0,0.00052328,120]
[354645097,1740602444378,-533.85,0.00052328,120]
[354645098,1740602444430,-500.0,0.00052328,120]
[354645099,1740602444490,-500.0,0.00052328,120]
[354645100,1740602444544,-500.0,0.00052328,120]
[354645101,1740602444596,-500.0,0.00052328,120]
[354645102,1740602444650,-500.0,0.00052328,120]
[354645103,1740602444702,-500.0,0.00052328,120]
[354645104,1740602444754,-500.0,0.00052328,120]
[354645105,1740602444805,-500.0,0.00052328,120]
[354645106,1740602444857,-515.52,0.00052328,120]
[354645107,1740602444910,-500.0,0.00052328,120]
[354645108,1740602444961,-500.0,0.00052328,120]
[354645109,1740602445013,-500.0,0.00052328,120]
[354645110,1740602445067,-500.0,0.00052328,120]
[354645111,1740602445116,-500.0,0.00052328,120]
[354645112,1740602445167,-500.0,0.00052328,120]
[354645113,1740602445216,-500.0,0.00052328,120]
[354645114,1740602445268,-500.0,0.00052328,120]
[354645115,1740602445321,-500.0,0.00052328,120]
[354645116,1740602445374,-500.0,0.00052328,120]
[354645117,1740602445428,-500.0,0.00052328,120]
[354645118,1740602445485,-500.0,0.00052328,120]
[354645119,1740602445542,-500.0,0.00052328,120]
[354645120,1740602445601,-500.0,0.00052328,120]
[354645121,1740602445663,-502.7453557,0.00052328,120]
[354645122,1740602445718,-500.0,0.00052328,120]
[354645123,1740602445773,-500.0,0.00052328,120]
[354645124,1740602445825,-500.0,0.00052328,120]
[354645125,1740602445877,-500.0,0.00052328,120]
[354645126,1740602445928,-500.0,0.00052328,7]
[354645127,1740602446126,-156.64,0.00052328,120]
[354645128,1740602446178,-500.0,0.00052328,120]
[354645129,1740602446228,-166.14,0.00052328,120]
[354645130,1740602446275,-500.0,0.00052328,120]
[354645131,1740602446322,-511.04,0.00052328,120]
[354645132,1740602446367,-500.0,0.00052328,120]
[354645133,1740602446417,-500.0,0.00052328,120]
[354645134,1740602446464,-500.0,0.00052328,120]
[354645135,1740602446511,-500.0,0.00052328,120]
[354645136,1740602446559,-500.0,0.00052328,120]
[354645137,1740602446609,-500.0,0.00052328,120]
[354645138,1740602446659,-500.0,0.00052328,120]
[354645139,1740602446708,-500.0,0.00052328,120]
[354645140,1740602446757,-240.73316012,0.00052328,120]
[354645141,1740602446804,-500.0,0.00052328,120]
[354645142,1740602446852,-500.0,0.00052328,120]
[354645143,1740602446902,-500.0,0.00052328,120]
[354645144,1740602446947,-500.0,0.00052328,120]
[354645145,1740602446989,-500.0,0.00052328,120]
[354645146,1740602447032,-384.42858924,0.00052373,10]
[354645147,1740602447074,-258.67328275,0.00052373,10]
[354645148,1740602447118,-500.0,0.000526,120]
[354645149,1740602447163,-500.0,0.000526,21]
[354645150,1740602447211,-500.0,0.000526,120]
[354645151,1740602447256,-500.0,0.000526,120]
[354645152,1740602447303,-500.0,0.000526,120]
[354645153,1740602447351,-500.0,0.000526,120]
[354645154,1740602447403,-500.0,0.000526,3]
[354645155,1740602447455,-500.0,0.000526,120]
[354645156,1740602447505,-500.0,0.000526,120]
[354645157,1740602447553,-500.0,0.000526,120]
[354645158,1740602447599,-500.0,0.000526,120]
[354645159,1740602447650,-500.0,0.000526,120]
[354645160,1740602447700,-500.0,0.000526,120]
[354645161,1740602447750,-500.0,0.00052601,120]
[354645162,1740602447801,-500.0,0.00052601,120]
[354645163,1740602447850,-500.0,0.00052601,120]
[354645164,1740602447900,-500.0,0.00052601,120]
[354645165,1740602447948,-500.0,0.00052601,120]
[354645166,1740602447995,-500.0,0.00052601,120]
[354645167,1740602448043,-500.0,0.00052601,120]
[354645168,1740602448093,-500.0,0.00052601,120]
[354645169,1740602448150,-175.13,0.00052601,120]
[354645170,1740602448205,-500.0,0.00052602,120]
[354645171,1740602448261,-500.0,0.00052602,120]
[354645172,1740602448314,-500.0,0.00052602,120]
[354645173,1740602448366,-500.0,0.00052602,120]
[354645174,1740602448419,-500.0,0.00052602,120]
[354645175,1740602448475,-500.0,0.00052602,120]
[354645176,1740602448529,-500.0,0.00052602,120]
[354645177,1740602448582,-500.0,0.00052602,120]
[354645178,1740602448634,-500.0,0.00052602,120]
[354645179,1740602448685,-177.46507911,0.00052602,120]
[354645180,1740602448733,-500.0,0.00052602,120]
[354645181,1740602448782,-500.0,0.00052602,120]
[354645182,1740602448830,-213.18,0.00052602,120]
[354645183,1740602448877,-579.96,0.00052602,120]
[354645184,1740602448923,-500.0,0.00052602,120]
[354645185,1740602448972,-567.54665885,0.00052602,120]
[354645186,1740602449025,-500.0,0.00052602,120]
[354645187,1740602449073,-500.0,0.00052602,120]
[354645188,1740602449123,-500.0,0.00052602,120]
[354645189,1740602449175,-500.0,0.00052602,120]
[354645190,1740602449229,-500.0,0.00052602,120]
[354645191,1740602449283,-500.0,0.00052602,120]
[354645192,1740602449336,-500.0,0.00052602,120]